Cogmind - Beta 16 --- EXPLORER MODE // 2025.12.20 @ 15:09:55 Player: Huntingteckel Result: Destroyed by H-61 Shepherd with Heavy Assault Cannon Performance ------------- Evolutions (3) 1500 Regions Visited (5) 1000 Robots Destroyed (81) 405 Value Destroyed (2886) 2886 Prototype IDs (5) 100 Alien Tech Used (0) 0 Bonus (0) 0 TOTAL SCORE: 5891 Bonus ------- None Cogmind --------- Core Integrity 0/700 Matter 249/300 Energy 150/150 System Corruption 21% Temperature Cool (11) Movement Core (850) Ox16 Location -7/Factory Parts ------- > --- POWER (3) -------- Micro Nuclear Core > --- PROPULSION (4) --- (None) > --- UTILITY (4) ------ Hardened Medium Armor Plating Improved Field Recycling Unit Improved Field Recycling Unit > --- WEAPON (3) ------- Autogun Minigun Gauss Cannon > --- INVENTORY (5) ---- Improved Field Recycling Unit (0) Heavy EM Pulse Gun Arc Projector Mini Assault Cannon Improved Remote Datajack Peak State ------------ > --- POWER ------------ Micro Nuclear Core Micro Nuclear Core > --- PROPULSION ------- Improved Carbon-fiber Leg Improved Carbon-fiber Leg Improved Carbon-fiber Leg Improved Carbon-fiber Leg > --- UTILITY ---------- Medium Storage Unit Targeting Computer Microactuators Recalibrator > --- WEAPON ----------- Improved Assault Rifle Mini Assault Cannon Axe > --- INVENTORY -------- Improved Carbon-fiber Leg Improved Carbon-fiber Leg High-capacity Battery Large Matter Pod Improved Terrain Scanner Reaction Control System Lightning Gun Mining Laser [Rating: 47] Favorites ----------- Power Ion Engine Engine Ion Engine Power Core Micro Nuclear Core Propulsion Improved Carbon-fiber Leg Leg Improved Carbon-fiber Leg Wheel Wheel Hover Unit Improved Hover Unit Flight Unit Flight Unit Utility Medium Storage Unit Device Improved Field Recycling Unit Storage Medium Storage Unit Processor Improved Targeting Computer Protection Propulsion Shielding Weapon Mini Assault Cannon Energy Gun Small Laser Ballistic Gun Light Assault Rifle Ballistic Cannon Mini Assault Cannon Launcher Heavy Rocket Launcher Special Weapon Improved Remote Datajack Slashing Weapon Axe Build | -11 -10 -9 -9 -8 -7 ------- Run | Yrd Mat Mat Sto Mat Fac Slots Evolved 7 | . 1 2 . 2 2 Power 2 | . 1 1 . . . Propulsion 2 | . . . . 1 1 Utility 2 | . . 1 . . 1 Weapon 1 | . . . . 1 . Parts Attached 63 | . 5 2 14 5 37 Power 13 | . 3 1 2 3 4 Engine 8 | . 3 1 2 2 . Core 5 | . . . . 1 4 Reactor . | . . . . . . Propulsion 20 | . 1 1 8 1 9 Treads . | . . . . . . Leg 9 | . 1 . 2 . 6 Wheel 4 | . . 1 . . 3 Hover 4 | . . . 3 1 . Flight 3 | . . . 3 . . Utility 16 | . . . 2 . 14 Device 9 | . . . . . 9 Storage 2 | . . . . . 2 Processor 3 | . . . 1 . 2 Hackware . | . . . . . . Protection 2 | . . . 1 . 1 Artifact . | . . . . . . Weapon 14 | . 1 . 2 1 10 Energy Gun 3 | . . . . . 3 Energy Cannon . | . . . . . . Ballistic Gun 5 | . 1 . 1 1 2 Ballistic Cannon 2 | . . . 1 . 1 Launcher 1 | . . . . . 1 Special Weapon 2 | . . . . . 2 Impact Weapon . | . . . . . . Slashing Weapon 1 | . . . . . 1 Piercing Weapon . | . . . . . . Special Melee Weapon . | . . . . . . Unidentified Prototypes 2 | . . . 2 . . Parts Lost 37 | . 1 1 3 1 31 Power 4 | . 1 . . . 3 Propulsion 11 | . . . 2 . 9 Utility 14 | . . . 1 1 12 Weapon 8 | . . 1 . . 7 Highest Loss Streak 10 | . 1 1 2 1 10 To Critical Strikes 1 | . . . . . 1 Average Backups 7 | 7 8 9 8 8 6 Power . | 1 . 1 . . . Propulsion 1 | 2 1 1 1 2 1 Utility 3 | 3 4 5 4 4 2 Weapon 1 | 1 1 2 1 1 1 Tool/Special . | . . . . . . Unused Backups 22 | 7 8 1 2 . 4 Power 2 | 1 1 . . . . Propulsion 7 | 2 5 . . . . Utility 7 | 2 1 . 1 . 3 Weapon 6 | 2 1 1 1 . 1 Tool/Special . | . . . . . . Average Slot Usage (%) 79 | . 93 87 94 93 65 Engine 13 | . 18 28 30 22 2 Core 4 | . . . . 1 9 Leg 13 | . 25 12 6 7 12 Wheel 1 | . . 7 6 . . Hover 3 | . . . 6 16 1 Device 3 | . . . . . 7 Storage 9 | . 12 10 10 8 8 Processor 2 | . . . 7 4 2 Protection 5 | . 12 10 8 8 2 Energy Gun 3 | . 12 9 . . 1 Ballistic Gun 11 | . 12 10 13 14 9 Ballistic Cannon 4 | . . . 5 8 6 Peak Build Rating 47 | 7 9 11 23 27 47 Average Rating 21 | 7 8 10 15 24 28 On Entrance 13 | 7 7 9 10 21 25 Avg Prop Armor Cover (%) 6 | . . 7 5 6 8 Naked Turns . | . . . . . . Heaviest Build 51 | 19 24 31 37 42 51 Greatest Support 72 | 20 20 20 20 15 72 Greatest Overweight (x) 16 | . 1 3 12 2 16 Average Overweight (x) 1 | . . 2 2 2 1 Largest Inventory Capacity 10 | 10 10 10 10 10 10 Average Capacity 9 | 10 10 10 10 10 8 Most Carried 10 | 7 10 10 10 10 10 Average Carried 7 | 7 8 9 8 8 6 Final Capacity 10 | 10 10 10 10 10 5 Final Carried 9 | 7 9 9 9 9 5 Class Distribution -------------------- 56% | Hacker-Mutant 20% | Hacker-Gunner 17% | Hacker-Tank 5% | Hacker-Skirmisher Dominant Class ---------------- Hacker-Mutant | -10/Materials Hacker-Mutant | -9/Materials Hacker-Mutant | -9/Storage Hacker-Tank | -8/Materials Hacker-Mutant | -7/Factory Resources | -11 -10 -9 -9 -8 -7 ----------- Run | Yrd Mat Mat Sto Mat Fac Matter Collected 2377 | 200 195 36 279 381 1286 Remotely . | . . . . . . Salvage Created 2595 | . 525 62 455 413 1140 Parts 139 | . 28 3 27 26 55 Haulers Intercepted . | . . . . . . Recyclers Shooed . | . . . . . . Parts Field Recycled . | . . . . . . Retrieved Matter . | . . . . . . Parts Self-Destructed . | . . . . . . Prevented . | . . . . . . Parts Restored . | . . . . . . Kills | -11 -10 -9 -9 -8 -7 ------- Run | Yrd Mat Mat Sto Mat Fac Combat Hostiles Destroyed 69 | . 13 1 13 13 29 Melee 3 | . . . . . 3 Guns 34 | . 13 1 8 5 7 Cannons 31 | . . . 5 8 18 AOE 1 | . . . . . 1 Classes Destroyed 13 | . 3 2 . . 8 Worker 2 | . . . . . 2 Builder 1 | . . . . . 1 Recycler 1 | . . . . . 1 Operator 2 | . . 1 . . 1 Watcher 8 | . 2 . . 1 5 Swarmer 17 | . 2 . 3 5 7 Grunt 24 | . 11 . 4 5 4 Brawler 5 | . . . . . 5 Sentry 10 | . . 1 6 3 . Specialist 1 | . . . . . 1 Hunter 2 | . . . . . 2 Programmer 8 | . . . . . 8 Assembled 2 | . . . . . 2 Best Kill Streak 4 | . 3 1 3 3 4 Combat Bots Only 4 | . 3 1 3 3 4 Max Kills in Single Turn 2 | . 2 1 1 1 2 Gunslinging 1 | . 1 . . . . Exploded 1 | . . . . . 1 Melee 1 | . . . . . 1 Uniques/NPCs Destroyed . | . . . . . . Combat | -11 -10 -9 -9 -8 -7 -------- Run | Yrd Mat Mat Sto Mat Fac Hostile Shots Fired 532 | . 62 10 46 46 368 Missed 131 | . 12 . 11 15 93 Hits 401 | . 50 10 35 31 275 Melee 26 | . . . . . 26 Projectile 375 | . 50 10 35 31 249 AOE 12 | . . . . . 12 Critical Strikes 19 | . . . . 1 18 Actively Blocked 1 | . . . . . 1 Part Disruptions 3 | . . . . . 3 Damage Taken 4139 | . 391 90 299 219 3140 Core 907 | . 76 29 40 49 713 Absorbed by Shields 50 | . . . . . 50 Redirected to Shielding 82 | . 26 6 20 12 18 Ignored by Resistances 2530 | . 248 54 188 143 1897 Core Remaining (%) 85 | 100 69 . 82 91 . Volleys Fired 249 | . 55 7 36 30 121 Largest 3 | . 2 1 2 3 3 Hottest 112 | . 60 20 60 83 112 Shots Fired 474 | . 82 7 70 90 225 Gun 319 | . 82 7 52 60 118 Cannon 149 | . . . 18 30 101 Launcher 2 | . . . . . 2 Special 4 | . . . . . 4 Kinetic 430 | . 55 7 70 90 208 Thermal 27 | . 27 . . . . Explosive 2 | . . . . . 2 Electromagnetic 11 | . . . . . 11 Robot Hit Streak 39 | . 33 10 26 39 24 Robot Miss Streak 3 | . 1 1 1 3 2 Penetration Max . | . . . . . . Secondary Targets 1 | . 1 . . . . Max Gunslinging Chain 1 | . 1 . . . . Shots Hit Robots 400 | . 70 6 61 66 197 Core Hits 155 | . 26 3 23 27 76 Critical Kills 2 | . 1 . 1 . . Critical Parts Destroyed 2 | . 1 . . 1 . Critical Strikes 14 | . 2 . 2 3 7 Destroy 4 | . 2 . 1 1 . Blast 7 | . . . 1 2 4 Corrupt 1 | . . . . . 1 Sever 2 | . . . . . 2 Melee Attacks 23 | . . . . . 23 Impact . | . . . . . . Slashing 23 | . . . . . 23 Piercing . | . . . . . . Sneak Attacks 1 | . . . . . 1 Combat Hostiles . | . . . . . . Follow-up Attacks . | . . . . . . Damage Inflicted 7485 | . 852 81 877 1094 4581 Guns 3150 | . 852 81 444 557 1216 Cannons 3338 | . . . 433 537 2368 Explosions 175 | . . . . . 175 Melee 821 | . . . . . 821 Ramming 1 | . . . . . 1 Kinetic 6105 | . 597 81 877 1094 3456 Thermal 341 | . 255 . . . 86 Explosive 89 | . . . . . 89 Electromagnetic 128 | . . . . . 128 Impact . | . . . . . . Slashing 821 | . . . . . 821 Piercing . | . . . . . . Highest Corruption 21 | . . . . . 21 Average Corruption 10 | . . . . . 10 Corruption Purged . | . . . . . . Corruption Blocked . | . . . . . . Effects 82 | . . . . . 82 Message Errors 25 | . . . . . 25 Matter Fused 17 | . . . . . 17 Heat Flow Errors 6 | . . . . . 6 Energy Discharges 5 | . . . . . 5 Parts Rejected 2 | . . . . . 2 Data Loss (minor) 11 | . . . . . 11 Data Loss (major) 9 | . . . . . 9 Misfires 2 | . . . . . 2 Alerts 1 | . . . . . 1 Misdirections 1 | . . . . . 1 Weapon Failures 3 | . . . . . 3 Overload Shots . | . . . . . . Overflow Damage 92 | . . . . . 92 Projectiles 31 | . . . . . 31 Explosions 6 | . . . . . 6 Melee 55 | . . . . . 55 Knockbacks 21 | . . . 3 2 16 Impact . | . . . . . . Kinetic 20 | . . . 2 2 16 Secondary 1 | . . . 1 . . Self-Inflicted Damage . | . . . . . . Shots . | . . . . . . Rammed 2 | . . . . . 2 Targets Rammed 2 | . . . . . 2 Kicked . | . . . . . . Crushed . | . . . . . . Highest Temperature 367 | . 108 13 315 231 367 Average Temperature 77 | . 29 7 87 83 79 Received Heat Transfer 1074 | . 327 45 171 117 414 Effects 2 | . . . . . 2 Energy Bleed 1 | . . . . . 1 Damage (minor) 1 | . . . . . 1 Siege Activations . | . . . . . . Martial Activations . | . . . . . . Shielding Activations . | . . . . . . Robots Disrupted . | . . . . . . Combat Hostiles . | . . . . . . Robots Corrupted . | . . . . . . Combat Hostiles . | . . . . . . Parts Fried . | . . . . . . Impact Corruptions . | . . . . . . Robots Melted . | . . . . . . Combat Hostiles . | . . . . . . Parts Melted 2 | . 2 . . . . Heat Transferred 675 | . 575 . . . 100 Parts Sabotaged . | . . . . . . Parts Stolen . | . . . . . . Parts Stripped . | . . . . . . Power Chain Reactions 1 | . . . . . 1 Alert | -11 -10 -9 -9 -8 -7 ------- Run | Yrd Mat Mat Sto Mat Fac Maximum Alert Level . | . . . . . . Low Security (%) 100 | 100 100 100 100 100 100 Level 1 . | . . . . . . Level 2 . | . . . . . . Level 3 . | . . . . . . Level 4 . | . . . . . . Level 5 . | . . . . . . High Security . | . . . . . . Max Security . | . . . . . . Peak Influence 113 | . 71 30 70 113 87 Initial 17 | . . . 4 . 17 Average 13 | . 12 1 18 29 10 Influence Increases 1935 | . 345 35 387 382 786 Destroy 0b10 Robot/C 1340 | . 260 20 260 260 540 Destroy 0b10 Robot/NC 80 | . 10 5 . 5 60 Destroy Leader 356 | . 54 10 80 72 140 Successful Hack 9 | . 5 . . 4 . Disable Machine 12 | . . . . . 12 Destroy Structure 33 | . 1 . 2 11 19 Partial Spotted 30 | . . . 30 . . Lose Combat Pursuer 75 | . 15 . 15 30 15 Influence Decreases 1935 | . 345 20 402 329 839 Entered New Map 47 | . . . 11 . 36 Time Decay 1762 | . 335 20 361 319 727 Lost Part 126 | . 10 . 30 10 76 Squads Dispatched 14 | . 2 . 2 4 6 Investigation 2 | . 2 . . . . Extermination 5 | . . . . . 5 Reinforcement 3 | . . . 1 1 1 Assault . | . . . . . . Garrison 4 | . . . 1 3 . Intercept . | . . . . . . Searches Triggered . | . . . . . . Construction Impeded 1 | . . . . . 1 Haulers Reinforced . | . . . . . . Active Scanning Responses . | . . . . . . Cargo Convoy Interrupts 1 | . . . . . 1 Stealth | -11 -10 -9 -9 -8 -7 --------- Run | Yrd Mat Mat Sto Mat Fac Distress Signals 2 | . . . 2 . . Communications Jammed . | . . . . . . Distress Signals . | . . . . . . Times Spotted 126 | . 26 2 18 21 59 Peak Tracking Total 10 | . 3 1 3 5 10 Tactical Retreats 5 | . 1 . 1 2 1 Traps | -11 -10 -9 -9 -8 -7 ------- Run | Yrd Mat Mat Sto Mat Fac Traps Triggered 4 | . . . 1 . 3 Indirectly . | . . . . . . Trap Hack Attempts . | . . . . . . Triggered . | . . . . . . Disarmed . | . . . . . . Reprogrammed . | . . . . . . Reused . | . . . . . . Traps Extracted . | . . . . . . Installed . | . . . . . . Triggered . | . . . . . . Machines | -11 -10 -9 -9 -8 -7 ---------- Run | Yrd Mat Mat Sto Mat Fac Machines Disabled 3 | . . . . . 3 Max in Single Turn 1 | . . . . . 1 Machines Repaired . | . . . . . . Machines Dismantled . | . . . . . . Machines Sabotaged . | . . . . . . Overloaded Fab Kills . | . . . . . . Hacking | -11 -10 -9 -9 -8 -7 --------- Run | Yrd Mat Mat Sto Mat Fac Machines Accessed 19 | . 6 . 4 4 5 Terminals 14 | . 4 . 3 3 4 Fabricators 1 | . . . . . 1 Repair Stations . | . . . . . . Recycling Units 4 | . 2 . 1 1 . Scanalyzers . | . . . . . . Garrison Access . | . . . . . . Total Hacks 45 | . 16 . 10 13 6 Successful 37 | . 12 . 10 10 5 Failed 8 | . 4 . . 3 1 Catastrophic 1 | . . . . 1 . Database Lockouts . | . . . . . . Manual . | . . . . . . Terminals 32 | . 11 . 6 10 5 Fabricators 1 | . . . . . 1 Repair Stations . | . . . . . . Recycling Units 12 | . 5 . 4 3 . Scanalyzers . | . . . . . . Garrison Access . | . . . . . . Terminal Hacks 24 | . 7 . 6 7 4 Record 17 | . 3 . 3 7 4 Prototype ID Bank 2 | . 2 . . . . Open Door 2 | . . . 2 . . Emergency Access Points 1 | . 1 . . . . Locate Traps 1 | . . . 1 . . Investigation Status 1 | . 1 . . . . Fabricator Hacks 1 | . . . . . 1 Network Status 1 | . . . . . 1 Repair Station Hacks . | . . . . . . Recycling Unit Hacks 12 | . 5 . 4 3 . Recycle Component 4 | . 2 . 1 1 . Process 4 | . 2 . 1 1 . Retrieve Matter 4 | . 1 . 2 1 . Scanalyzer . | . . . . . . Garrison Access Hacks . | . . . . . . Unauthorized Hacks . | . . . . . . Terminals . | . . . . . . Fabricators . | . . . . . . Repair Stations . | . . . . . . Recycling Units . | . . . . . . Scanalyzers . | . . . . . . Garrison Access . | . . . . . . Data Cores Recovered 1 | . . 1 . . . Used . | . . . . . . Hacking Detections 10 | . 3 . 1 2 4 Full Trace Events 4 | . 3 . 1 . . Feedback Events . | . . . . . . Feedback Blocked . | . . . . . . Robot Schematics Acquired . | . . . . . . Robots Built . | . . . . . . Authchips . | . . . . . . Time . | . . . . . . Total Robot Build Rating . | . . . . . . Part Schematics Acquired . | . . . . . . Parts Built . | . . . . . . Authchips . | . . . . . . Time . | . . . . . . Total Part Build Rating . | . . . . . . Part Studies Acquired . | . . . . . . Parts Repaired . | . . . . . . Time . | . . . . . . Parts Recycled 4 | . 2 . 1 1 . Recycled Matter 432 | . 312 . 79 41 . Retrieved Matter 93 | . 52 . . 41 . Retrieved Components . | . . . . . . Parts Scanalyzed . | . . . . . . Part Schematics Acquired . | . . . . . . Parts Damaged . | . . . . . . Bothacking | -11 -10 -9 -9 -8 -7 ------------ Run | Yrd Mat Mat Sto Mat Fac Used RIF Installer . | . . . . . . Robots Hacked 1 | . . . . . 1 Non-combat . | . . . . . . Combat 1 | . . . . . 1 Robot Hacks Applied 2 | . . . . . 2 parse_system 2 | . . . . . 2 Relay Couplers Released 4 | . . . . . 4 Programmers 4 | . . . . . 4 Fabnet Peak Effective % . | . . . . . . Robots Rewired . | . . . . . . Allies Hacked . | . . . . . . Hacks Repelled . | . . . . . . Allies | -11 -10 -9 -9 -8 -7 -------- Run | Yrd Mat Mat Sto Mat Fac Total Allies . | . . . . . . Largest Group . | . . . . . . Highest-Rated Group . | . . . . . . Highest-Rated Ally . | . . . . . . Total Orders . | . . . . . . Ally Attacks . | . . . . . . Total Damage . | . . . . . . Kills . | . . . . . . Allies Corrupted . | . . . . . . Allies Melted . | . . . . . . Intel | -11 -10 -9 -9 -8 -7 ------- Run | Yrd Mat Mat Sto Mat Fac Active Infowar (turns) 17 | . . . . . 17 Terrain 17 | . . . . . 17 Robot Analysis Total . | . . . . . . Derelict Logs Recovered . | . . . . . . Drone Launches . | . . . . . . Drone Recoveries . | . . . . . . Exploration | -11 -10 -9 -9 -8 -7 ------------- Run | Yrd Mat Mat Sto Mat Fac Turns Passed 5494 | 63 997 244 746 763 2681 Spaces Moved 2384 | 52 451 166 343 324 1048 Core 182 | . . . 1 . 181 Treads . | . . . . . . Legs 1317 | 52 451 24 80 . 710 Wheels 428 | . . 142 228 . 58 Hover 457 | . . . 34 324 99 Flight . | . . . . . . Fastest Speed 86 | 120 120 110 110 176 86 Average Speed 175 | 120 155 133 145 185 201 Slowest Speed 850 | 120 190 190 650 186 850 Overloaded Moves . | . . . . . . Propulsion Burnouts . | . . . . . . Robots Hopped . | . . . . . . Potential Cave-ins . | . . . . . . Cave-ins Triggered . | . . . . . . Exploration Rate (%) 30 | 5 56 17 47 33 26 Regions Visited 5 Branch Regions 1 Pre-discovered Areas . | . . . . . . Known Exits Taken 5 | 1 1 1 1 1 . Unknown Exits Taken . | . . . . . . Scrap Searched . | . . . . . . Spaces Dug . | . . . . . . Terrain Destroyed 36 | . . . 1 10 25 Melee . | . . . . . . Projectile 17 | . . . 1 10 6 AOE 19 | . . . . . 19 Terrain Rammed . | . . . . . . Walls Destroyed . | . . . . . . Machines Disabled . | . . . . . . Actions | -11 -10 -9 -9 -8 -7 --------- Run | Yrd Mat Mat Sto Mat Fac Total 3274 | 52 671 181 534 426 1410 Wait 436 | 1 138 5 105 58 129 Move 2379 | 51 450 165 342 323 1048 Hop . | . . . . . . Pick Up 64 | . 14 1 12 6 31 Fast Attach 3 | . . . . . 3 Attach 65 | . 5 2 16 5 37 Detach 14 | . 1 1 7 . 5 Swap 3 | . . . . 1 2 Drop 26 | . 8 . 6 3 9 Fire 249 | . 55 7 36 30 121 Melee 23 | . . . . . 23 Ram 2 | . . . . . 2 Kick . | . . . . . . Crush . | . . . . . . Escape Stasis 8 | . . . 8 . . Rewire 2 | . . . 2 . . Trap . | . . . . . . Miscellaneous . | . . . . . . Route ------- -11/Scrapyard -10/Materials (discovered 2 exits: *Mat / *Min) -9/Materials (discovered 2 exits: *Sto x2) -9/Storage -8/Materials -7/Factory History --------- Turn | Location | Event 1 | -11/Scrapyard | Identified exit to Materials 1 | -11/Scrapyard | Discovered exit to Materials (range 3) 64 | -11/Scrapyard | Entered Materials 64 | -10/Materials | Evolved 1 slot: Power x1 312 | -10/Materials | Build established: Hacker-Mutant 928 | -10/Materials | Identified exit to Mines 928 | -10/Materials | Discovered exit to Mines (range 16) 1012 | -10/Materials | Identified exit to Materials 1012 | -10/Materials | Discovered exit to Materials (range 8) 1061 | -10/Materials | Entered another Materials area 1061 | -9/Materials | Evolved 2 slots: Power x1, Utility x1 1143 | -9/Materials | Identified exit to Storage 1143 | -9/Materials | Discovered exit to Storage (range 14) 1278 | -9/Materials | Discovered exit to Storage (range 4) 1305 | -9/Materials | Entered Storage 1450 | -9/Storage | Garrison activated, responded to threat 2020 | -9/Storage | Identified exit to Materials 2020 | -9/Storage | Discovered exit to Materials (range 15) 2051 | -9/Storage | Entered Materials 2051 | -8/Materials | Evolved 2 slots: Propulsion x1, Weapon x1 2481 | -8/Materials | Garrison activated, responded to threat 2767 | -8/Materials | Build established: Hacker-Tank 2808 | -8/Materials | Identified exit to Factory 2808 | -8/Materials | Discovered exit to Factory (range 4) 2814 | -8/Materials | Entered Factory 2814 | -7/Factory | Evolved 2 slots: Propulsion x1, Utility x1 3713 | -7/Factory | Build established: Hacker-Gunner 3947 | -7/Factory | Cargo convoy interrupted 4031 | -7/Factory | Build established: Hacker-Mutant 4104 | -7/Factory | Lost 9 parts (2p4n1u2w) 4374 | -7/Factory | Core integrity fell below 50% 4481 | -7/Factory | System corruption reached 10% 4564 | -7/Factory | Core integrity fell below 20% 4888 | -7/Factory | Build established: Hacker-Skirmisher 4910 | -7/Factory | Assembled infested ambush trap array 4996 | -7/Factory | Lost 10 parts (4n4u2w) 5260 | -7/Factory | Build established: Hacker-Gunner 5495 | -7/Factory | Destroyed by H-61 Shepherd with Heavy Assault Cannon Last Messages --------------- 05385_ 8CJLM=&/R9KJ/CGQ=O4NO36T|CPEOPDZ9C 05400_ System corrupted: Component data lost. 05401_ Slug penetrates P-60 Hacker. 05401_ Destroyed Shock Rifle. 05404_ Slug penetrates P-60 Hacker. 05404_ Destroyed Shock Rifle. 05404_ P-60 Hacker suffers critical hit (Blast). 05404_ P-60 Hacker destroyed. 05415_ System corrupted: Matter fused (-10). 05418_ R-06 Scavenger collects Mic. Nuclear Core. 05424_ Acquired 33 matter. 05431_ System corrupted: Component data lost. 05432_ Acquired 1 matter. 05441_ Acquired 4 matter. 05452_ CDPYGO0MKG U9|L0PSDN|EA&IN4PEKX8OWY0& 05469_ G-47 Trooper destroyed. 05469_ Matter Pump disabled. 05472_ System corrupted: Substantial component data lost. 05495_ Targeting Computer destroyed. 05495_ Critical hit (Blast). Map ----- +----------------------------------------------------+ | ?????????????????????????????????????### # | | ??????????????????????????????????????# # | | ??????????????????????????????????????# # | | ??????????????????????????????????????## # | | ???????????????????????????????????????## | | ?????????????????? ?????????????????#### # | | ??????????????????? ##########+##### ########## | | ?????????????????? | | ?????????????????? | | ????????????????? % | | ?????????????????" | | ?????????????????" % % | | ????????????????"" ###/##### ## # | | ????????????????? # # # | | ????????????????"" # """ # """ # [ | | ???????????????""%%m # ""R" # """ + [ | | ????????????? """ # "" " # """ # ![ | | ????????????? ! # # # | | ???????????? # # """ # | | ???????????? #! ! ! # """ # # | | ????????????H #!!! # """ # # | | ??????????? #!! # # # | | ??????????? #;###+#### ! # # | | ?????????????# % #??# # # | | ?????????????# ##### #??# [# # | | ?????????????# @ #???# #??####### # | | ?????????????####+###########???# #????????# # | | ????????????????????????????????# #????????# # | | ????????????????????????????????# #????????# # | | ????????????????????????????????# #????????# + | | ????????????????????????????????# #????????# # | | ????????????????????????????????? ?????????? ? | | ????????????????????????????????? ???????????????? | | ?????????????????????????????????+???????????????? | | ?????????????????????????????????????????????????? | | ?????????????????????????????????????????????????? | | ?????????????????????????????????????????????????? | | ?????????????????????????????????????????????????? | | ?????????????????????????????????????????????????? | | ?????????????????????????????????????????????????? | | ?????????????????????????????????????????????????? | | ?????????????????????????????????????????????????? | | ?????????????????????????????????????????????????? | | ?????????????????????????????????????????????????? | | ?????????????????????????????????????????????????? | | ?????????????????????????????????????????????????? | | ?????????????????????????????????????????????????? | | ?????????????????????????????????????????????????? | | ?????????????????????????????????????????????????? | | ?????????????????????????????????????????????????? | +----------------------------------------------------+ Best States ------------- Heat Dissipation 58 Energy Generation 34 Energy Capacity 605 Matter Stores 403 Matter Capacity 450 Sight Range 16 Terrain Scan Range 16 Terrain Scan Density 10 Armor Coverage 225 Resistance: KI 35 Resistance: TH 35 Resistance: EX 35 Resistance: EM 35 Resistance: I 35 Resistance: S 35 Resistance: P 35 Propulsion Shielding 33 Weapon Shielding 33 Melee Speed Boost 20 Evasion (%) 55 Targeting Accuracy 6 Offensive Hacking 20 Item Schematics ----------------- None Robot Schematics ------------------ None Fabricated ------------ Nothing Repaired ---------- Nothing Studied --------- None Alien Tech Used ----------------- None Achievements -------------- Analysis Probe Botjacking Bumper Bots For Emergencies Only Ghost 'Em Jackpot Librarian Organ Harvest Overwhelming That Tickles There's More Where That Came From Challenges ------------ None Game ------ Seed HeatMetafiberProtomatter Manual? 0 Play Time 02:06:28 Cumulative 19.3 hours Start 2025.12.20 @ 08:33:47 End 2025.12.20 @ 15:09:55 Sessions 5 Manual Loads 0 Difficulty Explorer Special Mode None Game No. 30 Rogue 0 Adventurer 27 Explorer 3 Win Type - Total 0 Types 0/0/0/0/0/0/0/0/0/0 Lore% 3 Gallery% 17 Achievement% 12 Wizard Run 0 Options --------- Layout 0 ASCII 1 Keyboard 0 Movement Mouse Keybinds 0 Fullscreen 1 Font 18/SmallcapsGlow Map View 76x50 Zoom Use 0% Tactical HUD 1 Map Filters NONE Filters NONE Steam 1 RUN: 429a8e0c-e253-48ef-869a-abf005067868